bitfinex/quotes_ETHUSD_20251107
["timestamp","ask_amount","ask_price","bid_price","bid_amount"]
[1762535450756,1.259712,3309.2,3308.6,3.02235728]
[1762535450939,0.1744112,3309.4,3308.7,3.0223329]
[1762535451141,1.259712,3309.3,3308.6,3.02239873]
[1762535451327,1.259712,3309.3,3308.4,3.02260179]
[1762535451328,3.02202589,3309.1,3308.4,3.0225387]
[1762535451523,1.259712,3309.1,3308.1,5.6531]
[1762535451866,0.002,3308.9,3308.7,3.02231019]
[1762535452219,0.002,3308.9,3308.8,3.51244371]
[1762535452423,0.002,3308.9,3308.8,3.98024371]
[1762535453455,0.002,3308.9,3308.8,4.6805039]
[1762535453964,0.002,3308.9,3308.8,1.19046019]
[1762535454144,0.002,3308.9,3308.2,0.56531]
[1762535454335,0.5504,3308.9,3308.2,0.56531]
[1762535454530,0.002,3308.9,3308.1,5.1853]
[1762535454864,0.002,3308.9,3308.8,3.51244371]
[1762535455023,0.002,3308.9,3308.8,4.01046614]
[1762535455224,0.002,3308.9,3308.8,3.98024371]
[1762535455569,0.002,3308.9,3308.8,4.83090228]
[1762535456159,0.002,3308.9,3308.8,4.86112471]
[1762535456467,0.002,3308.9,3308.8,4.83090228]
[1762535456704,1e-08,3309.6,3309.2,3.02187839]
[1762535456923,1e-08,3309.9,3309.8,0.4902]
[1762535457219,0.005,3310.9,3310.0,4.68636403]
[1762535457357,0.005,3310.9,3310.8,3.02041802]
[1762535457565,0.005,3310.9,3310.8,3.6890222]
[1762535457790,0.005,3310.9,3310.8,4.97817646]
[1762535458178,0.005,3310.9,3310.8,4.94797228]
[1762535458687,0.005,3310.9,3310.8,4.97817646]
[1762535461195,0.002,3311.1,3311.0,12.18676765]
[1762535461392,0.002,3311.1,3311.0,5.09197796]
[1762535461564,0.002,3311.1,3311.0,4.94157796]
[1762535461898,0.002,3311.1,3311.0,5.12218031]
[1762535462203,0.002,3311.1,3311.0,12.59227165]
[1762535463204,0.002,3311.1,3311.0,13.85198365]
[1762535463415,1e-08,3311.9,3311.7,3.01959718]
[1762535463622,1e-08,3311.9,3311.8,12.26361169]
[1762535463916,1e-08,3311.9,3311.8,12.49280769]
[1762535464065,1e-08,3311.9,3311.8,11.23309569]
[1762535464277,1e-08,3311.9,3311.8,3.169906]
[1762535464474,1e-08,3311.9,3311.8,4.48946819]
[1762535465585,0.19670001,3311.9,3311.8,0.1504]
[1762535465785,1e-08,3311.9,3311.8,4.138306]
[1762535466022,1e-08,3311.9,3311.8,3.654006]
[1762535466316,3.84621484,3311.9,3311.8,0.1504]
[1762535466524,3.01963574,3311.7,3311.4,0.1504]
[1762535466820,3.01963574,3311.7,3310.3,10.11559448]
[1762535466821,0.456,3311.8,3311.1,0.1504]
[1762535467008,1.259712,3311.7,3310.9,0.1504]
[1762535467207,3.01968836,3311.6,3309.9,0.4843]
[1762535467519,1.259712,3311.6,3310.6,3.02060049]
[1762535467674,1.259712,3311.5,3311.0,3.02023397]
[1762535467877,3.01969968,3311.6,3311.0,0.1504]
[1762535468073,1.715712,3311.5,3311.0,0.1504]
[1762535468331,0.19670001,3311.9,3310.5,0.4843]
[1762535468506,0.19670001,3311.9,3310.3,7.09478969]
[1762535468507,1.259712,3311.8,3311.2,0.1504]
[1762535468677,3.01951354,3311.8,3311.2,0.1504]
[1762535468876,3.01951354,3311.8,3311.2,3.17039793]
[1762535469217,3.01951354,3311.8,3311.2,3.78946051]
[1762535469418,1e-08,3311.9,3311.3,0.03019961]
[1762535469732,0.002,3311.5,3311.4,3.01987074]
[1762535470081,0.002,3311.5,3311.4,5.39838274]
[1762535470384,0.002,3311.5,3311.4,5.80388674]
[1762535471757,0.002,3311.5,3311.4,5.39838274]
[1762535471936,0.002,3311.5,3311.4,5.80388674]
[1762535472128,0.002,3311.5,3311.4,6.99024744]
[1762535472337,0.002,3311.5,3311.4,6.50594744]
[1762535472975,0.002,3311.5,3311.4,6.99024744]
[1762535473150,0.002,3312.1,3312.0,4.99599999]
[1762535473553,0.3737,3312.1,3312.0,4.99599999]
[1762535473807,0.002,3312.1,3312.0,4.99599999]
[1762535474004,0.002,3312.1,3312.0,5.66103999]
[1762535474295,0.002,3312.1,3312.0,8.68036366]
[1762535474583,0.8288,3312.1,3312.0,5.14639999]
[1762535474810,0.8288,3312.1,3312.0,4.99599999]
[1762535474955,0.002,3312.1,3312.0,8.01532366]
[1762535475155,0.002,3312.1,3312.0,8.64982366]
[1762535475386,0.002,3312.1,3312.0,10.4112481]
[1762535475890,0.005,3312.9,3312.0,11.6709601]
[1762535476074,1e-08,3312.9,3312.8,5.31831054]
[1762535476388,1e-08,3312.9,3312.8,7.34578974]
[1762535476588,1e-08,3312.9,3312.8,6.94028574]
[1762535476775,1e-08,3312.9,3312.8,6.45598574]
[1762535476978,0.35950001,3312.9,3312.1,0.119]
[1762535477296,0.456,3312.8,3311.7,0.1943]
[1762535477445,0.456,3312.8,3312.1,3.01915186]
[1762535477802,1e-08,3312.9,3312.6,3.01869085]
[1762535478003,0.1967,3312.8,3312.6,3.01870256]
[1762535478209,1e-08,3312.9,3312.7,3.01865888]
[1762535478502,1e-08,3312.9,3312.7,3.01868566]
[1762535478657,1e-08,3312.9,3312.6,0.30187026]
[1762535478858,0.19670001,3312.9,3312.2,0.80151518]
[1762535479083,1e-08,3312.9,3312.8,3.01859454]
[1762535479313,1e-08,3312.9,3312.8,3.32045399]
[1762535479768,0.81550001,3312.9,3312.2,0.80151518]
[1762535479969,1e-08,3312.9,3312.2,0.80151518]
[1762535480170,0.19670001,3312.9,3312.4,3.01888549]
[1762535480370,0.456,3312.8,3312.4,0.68394728]
[1762535480577,0.456,3312.8,3312.4,3.70290091]
[1762535480769,0.456,3312.8,3312.4,0.68394728]
[1762535480971,0.19670001,3312.9,3312.5,3.01879292]
[1762535481201,0.19670001,3312.9,3312.6,3.01868703]
[1762535481402,0.19670001,3312.9,3312.2,0.80151518]
[1762535481571,1e-08,3312.9,3312.8,3.01859454]
[1762535481904,1.00930001,3312.9,3312.2,0.80151518]
[1762535482110,0.455,3312.8,3312.0,4.99599999]
[1762535482284,3.0188533,3312.6,3312.0,8.01532126]
[1762535482605,0.3586,3312.1,3312.0,4.99599999]
[1762535483018,0.454,3312.4,3312.0,4.99599999]
[1762535483177,0.65270001,3312.9,3312.1,0.1943]
[1762535483375,0.65270001,3312.9,3312.5,3.01881231]
[1762535483698,0.65270001,3312.9,3312.4,3.01895906]
[1762535483902,3.67123385,3312.9,3312.3,3.34337241]
[1762535484121,0.65270001,3312.9,3312.4,3.01895377]
[1762535484435,1e-08,3312.9,3312.8,3.50269454]
[1762535484769,1e-08,3312.9,3312.8,3.98699454]
[1762535485126,1e-08,3312.9,3312.8,4.39249854]
[1762535485479,1e-08,3312.9,3312.8,5.65221054]
[1762535485680,1e-08,3312.9,3312.8,6.51930074]
[1762535486511,0.005,3313.9,3312.9,1.259712]
[1762535486672,0.005,3313.9,3313.8,3.21198362]
[1762535486880,0.005,3313.9,3313.0,0.4843]
[1762535487096,0.005,3313.9,3313.8,0.1504]
[1762535487309,0.005,3313.9,3313.8,3.16808362]
[1762535487494,0.005,3313.9,3313.8,3.65238362]
[1762535487813,0.005,3313.9,3313.8,3.50198362]
[1762535488014,0.005,3313.9,3313.8,4.05788762]
[1762535488177,0.005,3313.9,3313.8,4.76545998]
[1762535488510,0.005,3313.9,3313.8,4.28115998]
[1762535488895,0.005,3313.9,3313.8,4.76545998]
[1762535489281,0.005,3313.9,3313.8,13.11204713]
[1762535490707,0.005,3314.9,3314.8,3.01677325]
[1762535490907,0.005,3314.9,3314.8,3.16717325]
[1762535491110,0.005,3314.9,3314.8,0.1504]
[1762535491296,1.0,3314.9,3314.8,0.1504]
[1762535491504,0.5452,3314.9,3314.8,0.1504]
[1762535492105,3.35126862,3314.9,3314.3,3.01719424]
[1762535492303,3.02132059,3314.9,3314.2,3.01723829]
[1762535492611,0.0046,3314.9,3313.9,1.11992538]
[1762535492804,0.0046,3314.9,3313.9,3.01759256]
[1762535493117,0.1967,3315.2,3314.0,0.4902]
[1762535493321,0.1967,3315.2,3314.1,0.1896]
[1762535493520,0.1967,3315.2,3314.3,3.01722837]
[1762535493680,0.1967,3315.2,3314.4,3.31880411]
[1762535493884,0.1967,3315.2,3314.4,3.80900411]
[1762535494107,0.2218,3315.9,3315.1,3.01650025]
[1762535494280,0.005,3315.9,3315.1,0.30165003]
[1762535494479,0.005,3315.9,3315.2,0.03016409]
[1762535494716,3.02079734,3315.9,3314.9,3.01663018]
[1762535495012,3.02079734,3315.9,3314.7,0.4902]
[1762535495013,3.40029734,3315.9,3315.0,3.01659125]
[1762535495214,3.40029734,3315.9,3315.0,0.30165912]
[1762535495215,0.3845,3315.9,3315.0,0.30165912]
[1762535495516,3.02083994,3315.9,3315.1,3.0164191]
[1762535495717,0.005,3315.9,3314.4,0.405504]
[1762535495918,0.005,3315.9,3314.5,0.405504]
[1762535496217,3.01621292,3315.5,3314.7,3.01678308]
[1762535496420,3.01601867,3315.7,3314.4,0.4902]
[1762535496735,3.01594872,3315.8,3315.0,3.01652004]
[1762535496884,3.01596188,3315.7,3315.0,3.01652004]
[1762535497092,3.01596188,3315.7,3314.8,3.01672602]
[1762535497093,0.45271079,3315.9,3315.7,0.45912024]
[1762535497415,0.45271079,3315.9,3315.7,3.47506677]
[1762535497416,0.005,3315.9,3315.7,3.47506677]
[1762535497786,0.005,3315.9,3315.8,3.01586344]
[1762535498022,0.005,3315.9,3315.7,0.45912024]
[1762535498221,0.005,3315.9,3315.8,3.01586344]
[1762535498427,0.005,3315.9,3315.8,3.36336181]
[1762535498636,0.005,3315.9,3315.8,0.34749837]
[1762535498821,0.005,3315.9,3315.7,3.47506436]
[1762535499022,0.005,3315.9,3315.8,3.01586344]
[1762535499227,0.005,3315.9,3315.7,0.45912024]
[1762535499835,0.005,3315.9,3315.7,3.47502012]
[1762535500029,0.005,3315.9,3315.7,0.45912024]
[1762535501268,3.06886344,3315.8,3315.7,0.45912024]
[1762535501427,0.69926171,3315.8,3315.7,0.45912024]
[1762535501627,0.005,3315.9,3315.7,3.47506368]
[1762535501839,0.005,3315.9,3315.7,3.47506701]
[1762535502037,0.005,3315.9,3315.8,0.1504]
[1762535502240,3.01559987,3316.1,3315.9,0.73525066]
[1762535502441,0.3795,3316.6,3315.9,0.73525066]
[1762535502652,3.0156111,3316.1,3315.9,0.73525066]
[1762535502852,3.06538154,3316.0,3315.9,0.73525066]
[1762535503214,0.4259,3316.0,3315.9,0.73525066]
[1762535503439,1.259712,3316.4,3315.9,0.73525066]
[1762535503757,1.259712,3316.3,3315.9,0.73525066]
[1762535504159,0.3762,3316.5,3315.9,1.12540728]
[1762535504313,0.3762,3316.5,3315.9,0.73525066]
[1762535504628,1.264712,3316.9,3316.0,3.01562862]
[1762535504629,3.01508764,3316.7,3316.0,3.01562862]
[1762535504825,0.3845,3316.9,3316.0,0.1504]
[1762535505048,3.39454303,3316.8,3316.0,0.1504]
[1762535505252,3.01522963,3316.5,3316.0,0.1504]
[1762535505446,0.002,3316.3,3316.0,0.1504]
[1762535505649,3.01746124,3316.3,3316.0,0.1504]
[1762535505825,3.01568154,3316.0,3315.9,0.73525066]
[1762535506147,3.01948154,3316.0,3315.9,0.73525066]
[1762535506718,0.0497,3316.0,3315.9,0.73525066]
[1762535507151,3.06538154,3316.0,3315.9,0.73525066]
[1762535507315,3.0155906,3316.1,3316.0,0.68864565]
[1762535507515,3.61890156,3316.1,3316.0,0.68864565]
[1762535507718,3.94870156,3316.1,3316.0,0.68864565]
[1762535507924,3.99840156,3316.1,3316.0,0.68864565]
[1762535508130,0.3298,3316.1,3316.0,0.68864565]
[1762535508542,0.002,3316.3,3316.0,0.68864565]
[1762535508749,0.002,3316.3,3316.2,3.68569966]
[1762535508930,0.002,3316.3,3316.2,3.16589966]
[1762535509128,0.002,3316.3,3316.2,0.1504]
[1762535509419,0.002,3316.3,3316.2,3.16589966]
[1762535510042,0.002,3316.3,3316.2,0.1504]
[1762535510729,0.1009,3316.3,3316.2,0.1504]
[1762535510940,0.002,3316.3,3316.2,3.16589966]
[1762535511143,0.002,3316.3,3316.2,4.50295419]
[1762535512356,0.002,3316.6,3316.5,3.01522689]
[1762535512533,0.002,3316.6,3316.5,4.11722689]
[1762535512736,0.005,3317.9,3317.8,3.01404545]
[1762535512966,0.005,3317.9,3317.7,0.1504]
[1762535513172,0.005,3317.9,3317.8,3.01404545]
[1762535513461,0.005,3317.9,3317.8,3.83464545]
[1762535513661,0.005,3317.9,3317.8,5.05753518]
[1762535513868,0.005,3317.9,3317.8,4.56569473]
[1762535514067,0.005,3317.9,3317.8,0.1504]
[1762535514729,0.005,3317.9,3317.8,3.16444545]
[1762535515462,0.005,3317.9,3317.8,4.11604545]
[1762535516667,0.005,3317.9,3317.8,4.52154945]
[1762535516967,0.005,3318.9,3318.8,3.01313727]
[1762535517272,0.005,3318.9,3318.8,4.851855]
[1762535517423,0.15766472,3319.8,3318.9,0.545019]
[1762535517620,0.15766472,3319.8,3319.0,0.4617]
[1762535517826,0.15766472,3319.8,3319.7,3.16272039]
[1762535518066,0.15766472,3319.8,3319.7,0.1504]
[1762535518361,0.218,3319.8,3319.5,0.1504]
[1762535518550,0.005,3319.9,3319.5,0.1504]
[1762535518749,0.005,3319.9,3319.8,3.01222965]
[1762535519072,0.005,3319.9,3319.8,4.73172562]
[1762535519279,0.005,3319.9,3319.8,5.13722962]
[1762535519438,1e-08,3319.9,3319.8,5.13722962]
[1762535519638,0.005,3320.9,3320.8,3.01132257]
[1762535519849,0.005,3320.9,3320.8,4.13305483]
[1762535520026,0.005,3320.9,3320.8,4.59475483]
[1762535520763,0.157,3320.9,3320.3,3.1920144]
[1762535521066,0.157,3320.9,3319.9,0.867204]
[1762535521067,0.157,3320.9,3319.9,0.4617]
[1762535521366,0.005,3320.9,3320.8,3.01132257]
[1762535522061,0.005,3320.9,3320.4,0.4617]
[1762535522232,0.005,3320.9,3320.7,3.01134382]
[1762535522577,3.01114122,3321.0,3320.9,0.48255706]
[1762535522876,4.90676734,3321.0,3320.9,0.48255706]
[1762535523070,5.11986734,3321.0,3320.9,0.48255706]
[1762535523264,3.01137886,3320.8,3319.1,1.440012]
[1762535523462,0.740304,3320.9,3319.6,3.01240528]
[1762535523668,0.23011301,3320.9,3319.2,7.09377515]
[1762535523845,3.01111537,3321.1,3320.3,3.01172701]
[1762535524047,1.259712,3321.1,3319.9,3.01213891]
[1762535524255,0.3348,3321.0,3319.3,0.491]
[1762535524471,0.152,3319.9,3319.0,0.40397153]
[1762535524684,0.46841057,3319.9,3318.5,0.491]
[1762535524892,0.46841057,3319.9,3319.5,3.01243406]
[1762535525075,0.152,3320.3,3319.2,0.491]
[1762535525279,3.01188587,3320.2,3319.5,3.0124878]
[1762535525461,0.3348,3320.2,3319.1,0.005]
[1762535525664,0.3348,3320.1,3319.3,3.01262263]
[1762535525866,3.01211405,3320.0,3319.1,0.005]
[1762535526155,0.3348,3320.1,3319.1,0.005]
[1762535526156,0.33469141,3319.9,3319.2,3.01273972]
[1762535526378,3.01213891,3319.9,3319.2,3.01273972]
[1762535526578,3.01213891,3319.9,3319.1,0.005]
[1762535526884,0.4868,3320.3,3319.1,0.005]
[1762535527048,0.152,3320.3,3319.6,3.01237461]
[1762535527246,0.3348,3320.2,3319.1,0.005]
[1762535527551,0.152,3320.3,3319.1,0.005]
[1762535527552,0.1217,3319.9,3319.1,0.005]
[1762535527876,3.56095817,3319.9,3319.1,0.005]
[1762535528122,0.54881926,3319.9,3319.1,0.005]
[1762535528377,1.259712,3320.2,3319.6,3.01240158]
[1762535528588,3.01189242,3320.2,3319.6,3.01240158]
[1762535529090,3.01189242,3320.2,3319.5,3.01246653]
[1762535529286,3.01198581,3320.1,3319.5,3.01246653]
[1762535529459,0.1217,3319.9,3319.1,0.005]
[1762535530147,3.13383891,3319.9,3319.1,0.005]
[1762535530352,3.13383891,3319.9,3319.3,3.01266958]
[1762535530744,3.13383891,3319.9,3319.4,0.1504]
[1762535530995,0.1217,3319.9,3319.5,3.0124913]
[1762535531157,3.25553891,3319.9,3319.4,0.1504]
[1762535531555,0.2434,3319.9,3319.4,0.1504]
[1762535531752,0.31637863,3320.2,3320.0,4.7566]
[1762535531971,0.152,3320.3,3320.0,4.7566]
[1762535532376,1.411712,3320.3,3320.1,0.03011957]
[1762535532582,3.01095989,3321.2,3320.3,0.38736414]
[1762535532791,0.002,3321.3,3320.5,3.01159246]
[1762535532976,0.002,3321.3,3321.2,0.1504]
[1762535533437,0.002,3321.3,3321.2,3.16135989]
[1762535533725,0.002,3321.3,3321.2,0.1504]
[1762535534720,0.002,3321.3,3320.3,0.87836414]
[1762535534888,0.002,3321.3,3321.0,0.1504]
[1762535535417,0.002,3321.3,3321.2,3.16135989]
[1762535535573,0.002,3321.3,3320.6,0.491]
[1762535536074,0.002,3321.3,3320.8,3.01128299]
[1762535536280,0.002,3321.3,3320.3,0.38736414]
[1762535536813,3.01097372,3321.2,3320.4,3.01168533]
[1762535537112,3.01107387,3321.1,3320.4,3.01168533]
[1762535537324,0.30129737,3321.2,3320.3,0.38736414]
[1762535537611,2.74565658,3321.1,3320.4,3.01162747]
[1762535537772,0.002,3321.3,3320.6,3.01143074]
[1762535537972,0.002,3321.3,3320.5,3.01158134]
[1762535538178,0.002,3321.3,3320.8,3.011257]
[1762535538431,0.002,3321.3,3320.9,0.03011231]
[1762535538577,0.002,3321.3,3321.2,3.20335989]
[1762535538780,0.002,3321.3,3321.2,3.69435989]
[1762535541215,0.002,3321.3,3321.2,0.1924]
[1762535541710,0.002,3321.3,3320.2,3.01179488]
[1762535541897,0.002,3321.3,3320.4,0.491]
[1762535542219,0.407504,3321.3,3320.1,0.1924]
[1762535542416,3.01150658,3320.6,3320.0,4.7566]
[1762535542717,3.01150658,3320.6,3320.0,7.76862992]
[1762535542718,3.01150568,3320.6,3320.0,7.76862992]
[1762535542877,3.01095989,3321.2,3320.0,4.7566]
[1762535542878,3.01168639,3320.4,3320.0,4.7566]
[1762535543083,1.60155839,3321.1,3320.0,4.7566]
[1762535543283,3.01161839,3320.5,3320.0,4.7566]
[1762535543484,3.01153961,3320.6,3320.0,7.76864324]
[1762535543694,3.01153961,3320.6,3320.0,4.7566]
[1762535543695,3.01188081,3320.2,3320.0,4.7566]
[1762535543901,3.01195747,3320.1,3320.0,4.7566]
[1762535544891,3.4172616,3320.4,3320.0,4.7566]
[1762535545092,1.259712,3320.8,3320.0,4.7566]
[1762535545293,3.01186221,3320.3,3320.0,4.7566]
[1762535545617,3.01195747,3320.1,3320.0,4.7566]
[1762535546960,1.259712,3320.2,3320.0,4.7566]
[1762535547120,1.259712,3320.4,3320.0,4.7566]
[1762535547321,3.01195747,3320.1,3320.0,4.7566]
[1762535547618,4.19299829,3320.1,3320.0,4.7566]
[1762535547993,1.259712,3320.1,3320.0,4.7566]
[1762535548203,4.27166947,3320.1,3320.0,4.7566]
[1762535549749,0.34184639,3321.1,3320.0,4.7566]
[1762535550038,3.01177917,3320.3,3320.0,4.7566]
[1762535550239,3.01195747,3320.1,3320.0,4.7566]
[1762535550714,3.01187838,3320.2,3320.0,4.7566]
[1762535551029,1.259712,3321.0,3320.0,4.7566]
[1762535551228,1.665216,3320.7,3320.0,4.7566]
[1762535551409,3.01195214,3320.2,3320.0,4.7566]
[1762535551598,4.27166947,3320.1,3320.0,4.7566]
[1762535551796,3.41764291,3319.9,3319.8,0.15866472]
[1762535551996,4.67771788,3319.5,3319.4,0.001]
[1762535552696,3.94759556,3319.9,3319.5,0.53251392]
[1762535552933,1.259712,3319.8,3319.5,0.53251392]
[1762535553095,1.259712,3319.9,3319.5,0.53251392]
[1762535553319,1.259712,3320.3,3319.6,0.35460446]
[1762535553557,3.01179351,3320.3,3319.5,3.54499196]
[1762535553727,1.259712,3319.9,3319.5,3.54495286]
[1762535553927,3.01205596,3320.0,3319.6,0.35459529]
[1762535554268,0.15742902,3320.9,3319.6,0.80619529]
[1762535554416,3.01149591,3320.7,3319.7,0.0301232]
[1762535554763,0.002,3321.3,3319.8,3.0121538]
[1762535554964,3.01159861,3320.5,3319.7,0.4516]
[1762535555120,3.01165201,3320.5,3319.7,0.4516]
[1762535555461,3.31277689,3320.5,3319.7,0.0301232]
[1762535555618,3.01157842,3320.6,3319.6,3.01241113]
[1762535555817,3.01160759,3320.5,3319.8,3.01216273]
[1762535556023,3.01151513,3320.6,3319.9,3.01206357]
[1762535556248,1.259712,3321.1,3319.7,0.4516]
[1762535556436,0.405504,3321.2,3319.8,0.34640014]
[1762535556622,3.01169239,3320.4,3319.8,0.34640014]
[1762535556836,3.01177688,3320.3,3319.8,0.34640014]
[1762535557157,1.667216,3321.3,3320.0,3.01204097]
[1762535557342,3.01116006,3321.0,3320.0,0.33584411]
[1762535557518,4.27095437,3320.9,3320.1,0.1863]
[1762535557722,1.259712,3320.8,3320.7,0.54845783]
[1762535557922,4.27103457,3320.8,3320.7,0.54845783]
[1762535558846,4.67653857,3320.8,3320.7,0.54845783]
[1762535559128,5.44531562,3320.8,3320.7,0.54845783]
[1762535560627,0.76877705,3320.8,3320.7,0.54845783]
[1762535560820,1.665216,3320.8,3320.7,0.54845783]
[1762535561028,4.67653857,3320.8,3320.7,0.54845783]
[1762535561641,4.67653857,3320.8,3320.2,0.001]
[1762535561642,4.67699204,3320.3,3320.2,0.001]
[1762535562977,4.19435556,3320.3,3320.2,0.001]
[1762535563145,3.78885156,3320.3,3320.2,0.001]
[1762535563560,4.19435556,3320.3,3320.2,0.001]
[1762535565528,3.78885156,3320.3,3320.2,0.001]
[1762535566383,4.19435556,3320.3,3320.2,0.001]
[1762535567827,0.405504,3320.3,3320.2,0.001]
[1762535568027,5.44584966,3320.3,3320.2,0.001]
[1762535571974,5.91846054,3320.3,3320.2,0.001]
[1762535572974,5.49352284,3320.3,3320.2,0.001]
[1762535573177,3.01204819,3320.0,3319.9,0.001]
[1762535573412,4.27176019,3320.0,3319.9,0.001]
[1762535573561,5.12610263,3320.0,3319.9,0.001]
[1762535574859,5.53160663,3320.0,3319.9,0.001]
[1762535578099,4.85706343,3320.0,3319.9,0.001]
[1762535578800,4.45155943,3320.0,3319.9,0.001]
[1762535578981,2.33750499,3320.0,3319.9,0.001]
[1762535580090,2.33750499,3320.0,3319.9,0.4521]
[1762535580289,2.33750499,3320.0,3319.9,0.912]
[1762535580894,3.01204819,3320.0,3319.9,0.912]
[1762535581196,3.01204819,3320.0,3319.9,0.001]
[1762535581503,3.01204819,3320.0,3319.9,0.912]
[1762535581680,3.01204819,3320.0,3319.9,0.4521]
[1762535581877,3.01204819,3320.0,3319.9,0.001]
[1762535582077,3.41755219,3320.0,3319.9,0.001]
[1762535583106,2.69067936,3320.0,3319.9,0.001]
[1762535583308,5.65302255,3320.0,3319.9,0.001]
[1762535584908,0.405504,3319.0,3318.0,0.674]
[1762535585207,2.96234319,3320.0,3318.1,0.4866]
[1762535585208,1.259712,3319.3,3318.1,0.4866]
[1762535585405,0.15750689,3319.2,3318.3,3.01357602]
[1762535585591,0.15750689,3319.2,3318.1,0.4866]
[1762535585768,0.15750689,3319.2,3318.2,0.4816]
[1762535585973,3.01316111,3318.8,3318.2,3.49522988]
[1762535586173,3.01316111,3318.8,3318.3,0.35002299]
[1762535586407,3.01316111,3318.8,3318.7,0.4924]
[1762535586715,3.01304649,3318.9,3318.3,0.4816]
[1762535586871,0.405504,3319.1,3318.3,0.4816]
[1762535587072,0.15750689,3319.2,3318.3,0.4816]
[1762535587302,3.01277416,3319.2,3319.1,0.6807]
[1762535587512,3.01254144,3319.5,3319.1,1.1623]
[1762535587715,0.15748289,3319.8,3319.4,0.4924]
[1762535587872,0.002,3320.3,3319.2,0.4816]
[1762535588076,2.53738199,3319.7,3319.6,0.4924]
[1762535588297,1.259712,3319.7,3319.6,0.4924]
[1762535588496,1.259712,3319.7,3319.6,0.974]
[1762535588702,4.27203239,3319.7,3319.6,0.974]
[1762535589022,0.15746543,3320.1,3319.6,0.974]
[1762535589207,0.002,3320.3,3320.0,0.4924]
[1762535589405,0.002,3320.3,3320.2,0.6807]
[1762535589610,4.27348804,3320.3,3320.2,0.6807]
[1762535589924,4.27348804,3320.3,3317.8,2.16488734]
[1762535589925,3.01213265,3320.0,3319.7,0.1883]
[1762535590238,0.73051893,3320.3,3319.9,0.4924]
[1762535590541,0.73051893,3320.3,3320.2,0.6807]
[1762535590542,0.002,3320.3,3320.2,0.6807]
[1762535590754,3.01342683,3320.7,3320.2,1.1623]
[1762535590755,0.002,3320.7,3320.2,1.1623]
[1762535591042,0.002,3320.7,3320.6,0.4924]
[1762535591193,0.002,3320.7,3320.6,0.974]
[1762535591508,3.01341325,3320.7,3320.6,0.4924]
[1762535591709,3.01341325,3320.7,3320.6,0.974]
[1762535591910,0.002,3320.7,3320.6,0.974]
[1762535592122,3.01341325,3320.7,3320.2,0.1883]
[1762535592326,0.002,3320.7,3320.6,0.4924]
[1762535592757,0.002,3320.7,3320.6,0.974]
[1762535593230,0.005,3320.9,3320.7,0.45247868]
[1762535593429,4.27594389,3320.9,3320.8,0.974]
[1762535593755,4.27594389,3320.9,3320.7,0.45247868]
[1762535593756,4.27103457,3320.8,3320.7,0.45247868]
[1762535594050,0.405504,3320.6,3319.5,0.4816]
[1762535594213,3.0119943,3320.1,3319.5,0.4816]
[1762535594405,3.01188749,3320.2,3319.5,3.49406724]
[1762535594751,1.259712,3320.6,3320.2,0.4924]
[1762535594926,4.27146997,3320.4,3320.2,0.4924]
[1762535595135,4.27146997,3320.4,3320.3,0.4816]
[1762535595464,3.01221821,3319.9,3319.5,0.632]
[1762535595735,3.01206552,3320.0,3319.5,0.632]
[1762535595943,3.01213891,3319.9,3319.8,0.4924]
[1762535596147,1.259712,3320.4,3319.8,0.4924]
[1762535596344,3.01212856,3320.0,3319.8,0.4924]
[1762535596643,3.01212856,3320.0,3319.5,0.1504]
[1762535596644,1.259712,3320.2,3319.9,0.4816]
[1762535596846,3.0111566,3321.0,3320.0,0.03012048]
[1762535597066,0.002,3321.3,3320.8,0.4924]
[1762535597449,3.01290325,3321.3,3320.8,0.974]
[1762535597609,0.002,3321.3,3320.8,3.98532257]
[1762535598248,0.002,3321.3,3320.9,0.2857213]
[1762535598458,0.002,3321.3,3321.2,0.6807]
[1762535598642,3.00978965,3322.5,3321.5,3.01068794]
[1762535598846,3.00978965,3322.5,3321.8,0.4924]
[1762535599047,3.00978965,3322.5,3321.7,3.01043109]
[1762535599048,3.00978179,3322.5,3322.4,0.4924]
[1762535599357,3.01011067,3322.2,3321.7,0.4816]
[1762535599544,3.01011067,3322.2,3322.1,0.4924]
[1762535599724,3.01005357,3322.2,3322.1,0.4924]
[1762535599922,0.005,3322.9,3322.1,0.974]
[1762535600263,0.005,3322.9,3322.8,0.4924]
[1762535600632,0.005,3322.9,3322.8,0.974]
[1762535600826,3.01441948,3322.9,3322.8,0.4924]
[1762535601123,3.00954194,3322.8,3321.3,3.01086923]
[1762535601328,0.005,3322.9,3322.8,0.4924]
[1762535601847,0.005,3322.9,3322.8,3.98351005]
[1762535602053,0.16228324,3323.9,3322.8,1.0040951]
[1762535602256,0.005,3323.9,3323.8,3.5010046]
[1762535602452,0.005,3324.9,3323.8,0.974]
[1762535602634,1.259712,3324.8,3323.8,0.974]
[1762535602835,0.005,3324.9,3323.8,0.974]
[1762535603036,1.259712,3324.8,3323.4,0.1883]
[1762535603358,3.00865008,3323.8,3323.4,0.1883]
[1762535603688,3.0091189,3323.3,3322.9,0.4816]
[1762535603848,3.0091478,3323.2,3323.1,0.1883]
[1762535604382,0.405504,3324.0,3322.8,0.1883]
[1762535604565,3.00903509,3323.4,3322.8,0.1883]
[1762535604762,3.00906041,3323.3,3322.9,0.4816]
[1762535604974,0.30086025,3323.8,3322.9,0.4816]
[1762535605186,0.30086025,3323.8,3323.2,0.4924]
[1762535605385,1.259712,3323.5,3322.9,0.4816]
[1762535605587,1.259712,3324.7,3322.9,0.4816]
[1762535605886,3.00915274,3323.2,3322.9,0.4816]
[1762535606088,3.00889872,3323.5,3322.9,0.4816]
[1762535606386,3.00889872,3323.5,3323.4,0.4924]
[1762535606889,1.259712,3323.7,3323.4,0.974]
[1762535607121,4.26858818,3323.5,3323.4,0.974]
[1762535607253,3.73661256,3323.5,3323.0,0.4816]